bitfinex/quotes_SOLUSD_20250929
["timestamp","ask_amount","ask_price","bid_price","bid_amount"]
[1759153903846,0.69,209.14,209.1,119.52]
[1759153904362,0.69,209.13,209.11,40.22]
[1759153904558,9.84161616,209.17,209.11,40.22]
[1759153904742,26.0,209.15,209.11,40.22]
[1759153904943,26.69,209.14,209.11,40.22]
[1759153905148,0.69,209.13,209.04,0.7]
[1759153905336,16.73680183,209.12,209.05,40.22]
[1759153905539,0.69,209.17,209.06,40.92]
[1759153905862,26.0,209.15,209.07,0.7]
[1759153906253,42.73360106,209.16,209.07,0.7]
[1759153906649,13.59559401,209.15,209.06,40.22]
[1759153906863,0.69,209.14,209.07,40.22]
[1759153907440,13.59559401,209.15,209.07,40.22]
[1759153907763,26.0,209.16,209.07,45.00304352]
[1759153907975,30.78106338,209.16,209.08,0.7]
[1759153908155,0.69,209.15,209.07,40.22]
[1759153908339,0.69,209.15,209.07,40.92]
[1759153908535,14.28559401,209.15,209.07,40.22]
[1759153908940,0.69,209.14,209.07,40.22]
[1759153909257,0.69,209.13,209.03,4.783995]
[1759153909561,0.69,209.13,209.07,40.22]
[1759153909562,4.78194338,209.12,209.07,40.22]
[1759153909864,0.69,209.19,209.08,0.7]
[1759153910046,3.15927366,209.29,209.1,26.0]
[1759153910366,4.37077225,209.25,209.11,0.7]
[1759153910564,26.0,209.21,209.11,0.7]
[1759153910762,0.69,209.2,209.11,0.7]
[1759153911266,0.67,209.2,209.08,0.72]
[1759153911436,4.78057175,209.18,209.08,5.50278535]
[1759153911760,13.59559401,209.16,209.09,40.22]
[1759153912137,37.94989128,209.21,209.09,40.22]
[1759153912138,4.78020006,209.2,209.1,0.72]
[1759153912335,16.73048686,209.2,209.1,0.72]
[1759153913062,0.67,209.19,209.1,0.72]
[1759153913273,7.94615342,209.2,209.1,0.72]
[1759153913446,0.67,209.25,209.11,16.73760221]
[1759153913639,26.0,209.21,209.12,0.72]
[1759153913835,13.59559401,209.24,209.12,0.72]
[1759153914272,0.67,209.25,209.12,0.72]
[1759153914737,13.59559401,209.28,209.12,0.72]
[1759153914738,14.26559401,209.27,209.12,0.72]
[1759153915678,3.16769642,209.28,209.16,26.0]
[1759153915838,13.69559401,209.31,209.16,26.0]
[1759153915839,0.1,209.31,209.17,40.92]
[1759153916039,0.1,209.31,209.18,0.72]
[1759153916365,0.1,209.31,209.2,26.0]
[1759153916540,0.1,209.31,209.21,0.72]
[1759153916742,0.77,209.31,209.21,0.72]
[1759153916947,5.54761585,209.31,209.22,40.2]
[1759153917150,0.1,209.31,209.23,0.72]
[1759153917545,0.1,209.31,209.24,16.7272032]
[1759153917752,0.1,209.31,209.25,0.72]
[1759153918069,0.1,209.31,209.27,26.0]
[1759153918251,0.1,209.31,209.28,0.72]
[1759153918464,0.1,209.31,209.26,0.72]
[1759153918662,0.1,209.31,209.29,40.26]
[1759153918973,4.75065951,209.35,209.25,0.72]
[1759153919151,16.69238389,209.35,209.26,40.26]
[1759153919353,0.67,209.34,209.26,40.26]
[1759153919679,17.39001146,209.33,209.22,5.49963668]
[1759153919843,17.39001146,209.33,209.23,40.26]
[1759153920258,26.0,209.3,209.24,40.26]
[1759153920467,26.0,209.26,209.16,79.3]
[1759153920658,26.0,209.22,209.08,0.72]
[1759153920969,14.26559401,209.25,208.99,0.72]
[1759153920970,4.37077225,209.13,208.99,0.72]
[1759153921148,4.37077225,209.1,208.97,34.46]
[1759153921466,4.37077225,209.07,208.97,34.46]
[1759153921652,13.59559401,209.06,208.98,40.3]
[1759153921841,26.0,209.08,208.98,41.02]
[1759153922047,4.78256507,209.1,208.98,40.3]
[1759153922242,18.63636626,209.09,208.99,0.72]
[1759153922568,18.63636626,209.09,209.0,40.28]
[1759153923155,26.0,209.06,209.0,40.28]
[1759153923362,31.04077225,209.06,208.99,40.26]
[1759153923559,4.7835446,209.05,208.98,40.24]
[1759153924168,4.37077225,209.01,208.98,40.24]
[1759153924548,0.67,209.0,208.98,40.24]
[1759153925162,0.67,208.99,208.94,40.24]
[1759153925352,4.37077225,208.97,208.93,40.24]
[1759153925678,9.15622354,208.97,208.93,40.24]
[1759153926058,29.85939367,208.99,208.93,40.24]
[1759153926272,26.0,208.99,208.93,45.02619502]
[1759153926588,4.37077225,209.0,208.93,45.02619502]
[1759153926759,4.37077225,209.0,208.93,40.24]
[1759153927085,4.37077225,208.97,208.93,40.24]
[1759153927371,30.37077225,208.99,208.94,40.28]
[1759153927541,26.67,209.01,208.87,0.2]
[1759153927542,26.0,209.01,208.95,0.72]
[1759153927748,17.96636626,209.1,208.95,0.72]
[1759153928150,5.45222865,209.11,208.95,0.72]
[1759153928151,0.67,209.09,208.95,26.72]
[1759153928360,6.4398801,209.11,208.96,0.72]
[1759153928655,20.03547411,209.11,208.96,0.72]
[1759153928859,6.4398801,209.11,208.96,26.72]
[1759153929068,6.4398801,209.11,208.97,0.72]
[1759153929274,6.4398801,209.14,208.97,26.72]
[1759153929459,0.67,209.15,208.98,0.72]
[1759153929768,3.95962053,209.27,208.98,0.72]
[1759153929769,0.67,209.2,209.03,16.74400803]
[1759153929962,7.1098801,209.2,209.04,0.72]
[1759153930165,26.0,209.17,209.04,0.72]
[1759153931085,7.1098801,209.2,209.04,0.72]
[1759153931286,26.0,209.17,209.04,0.72]
[1759153931675,26.0,209.17,209.05,45.5435446]
[1759153931676,5.45102887,209.16,209.05,45.5435446]
[1759153931982,26.0,209.15,209.06,0.72]
[1759153932185,20.0,209.28,209.06,0.72]
[1759153932186,0.67,209.2,209.06,0.72]
[1759153933370,0.67,209.23,209.08,26.0]
[1759153933579,5.44957444,209.23,209.1,4.78240076]
[1759153933762,31.44957444,209.23,209.11,0.68]
[1759153933958,43.39814778,209.23,209.12,40.74]
[1759153934177,43.39814778,209.23,209.1,16.73840267]
[1759153934178,6.4398801,209.21,209.13,40.74]
[1759153934373,6.4398801,209.18,209.13,40.74]
[1759153934575,0.69,209.17,209.13,40.74]
[1759153934773,0.69,209.16,209.09,40.72]
[1759153934962,33.1298801,209.15,209.09,40.72]
[1759153935160,26.0,209.15,209.09,40.72]
[1759153935389,3.1947216,209.22,209.1,0.68]
[1759153935604,26.0,209.18,209.1,0.68]
[1759153935787,26.0,209.18,209.09,40.72]
[1759153935788,26.0,209.16,209.09,40.72]
[1759153936089,7.1298801,209.15,209.09,40.72]
[1759153936471,26.0,209.11,209.09,40.72]
[1759153937976,26.0,209.15,209.09,40.72]
[1759153938499,26.0,209.15,209.09,45.5025804]
[1759153938697,6.4398801,209.19,209.1,0.68]
[1759153938873,11.22025257,209.19,209.1,0.68]
[1759153939068,14.28559401,209.18,209.09,40.72]
[1759153939600,6.4398801,209.21,209.1,0.68]
[1759153939770,26.0,209.18,209.11,4.78217206]
[1759153939971,30.78059537,209.18,209.11,4.78217206]
[1759153940296,0.69,209.22,209.12,0.68]
[1759153940488,26.0,209.19,209.12,0.68]
[1759153940796,26.69,209.19,209.09,45.50241107]
[1759153940999,0.66,209.26,209.1,0.68]
[1759153941169,7.0998801,209.26,209.1,15.1363908]
[1759153941376,7.0998801,209.26,209.09,81.37213223]
[1759153941377,0.66,209.25,209.11,0.68]
[1759153941574,6.4398801,209.2,209.11,0.68]
[1759153941769,4.78034322,209.19,209.1,40.58]
[1759153942000,11.22022332,209.19,209.1,40.58]
[1759153942179,0.66,209.18,209.1,40.58]
[1759153942381,6.4398801,209.13,209.02,4.78423117]
[1759153942589,32.4398801,209.1,208.96,4.7856049]
[1759153942885,6.4398801,209.07,208.97,41.3]
[1759153943088,6.4398801,209.06,208.98,39.34]
[1759153943393,26.0,209.08,208.99,0.68]
[1759153943692,4.78285823,209.08,208.99,0.68]
[1759153943886,5.44285823,209.08,208.99,5.46488721]
[1759153944194,26.0,209.08,209.0,0.68]
[1759153944394,16.73840267,209.1,209.0,0.68]
[1759153944698,20.03547411,209.18,209.0,0.68]
[1759153944895,20.03547411,209.18,209.0,15.09]
[1759153945100,0.66,209.19,209.02,26.0]
[1759153945279,26.0,209.18,209.03,0.68]
[1759153945483,0.66,209.19,209.03,0.68]
[1759153945682,4.78057175,209.18,209.04,4.78377344]
[1759153945887,0.66,209.19,209.05,0.68]
[1759153946085,0.66,209.19,209.06,40.64]
[1759153946291,46.03547411,209.17,209.0,0.68]
[1759153946471,6.4398801,209.09,209.0,0.68]
[1759153946669,6.4398801,209.09,208.93,16.75202219]
[1759153946670,0.66,209.08,208.99,0.68]
[1759153946908,40.68,209.18,208.99,0.68]
[1759153947101,26.0,209.16,208.99,0.68]
[1759153947398,0.66,209.17,208.99,0.68]
[1759153947399,26.0,209.14,208.99,0.68]
[1759153947781,4.78171472,209.13,209.0,16.74641147]
[1759153947990,26.0,209.14,209.01,0.68]
[1759153948297,31.44127852,209.15,209.01,0.68]
[1759153948486,31.44127852,209.15,209.01,214.68]
[1759153948681,31.44127852,209.15,209.02,0.68]
[1759153948889,31.44127852,209.15,209.02,214.68]
[1759153949075,31.44127852,209.15,209.02,214.0]
[1759153949277,43.39442219,209.15,209.03,0.68]
[1759153949483,20.69547411,209.14,209.03,0.68]
[1759153949679,20.69547411,209.14,208.97,42.62]
[1759153949680,26.0,209.1,208.99,0.68]
[1759153949882,32.4398801,209.1,208.99,0.68]
[1759153950121,0.66,209.09,208.97,242.58305333]
[1759153950418,6.4398801,209.07,208.97,21.40534261]
[1759153950578,26.0,209.06,208.97,21.40534261]
[1759153950983,26.66,209.06,208.97,16.62]
[1759153951386,7.0998801,209.05,208.97,16.62]
[1759153951623,6.4398801,209.02,208.97,16.62]
[1759153951789,26.0,209.03,208.97,16.62]
[1759153951790,6.4398801,209.0,208.97,16.62]
[1759153952300,0.66,208.99,208.97,16.62]
[1759153952511,6.4398801,209.0,208.92,0.68]
[1759153952688,26.0,209.01,208.92,0.68]
[1759153953178,0.66,209.0,208.89,45.42720857]
[1759153953377,6.4398801,208.99,208.89,40.64]
[1759153953598,6.4398801,208.96,208.89,40.64]
[1759153954208,11.22553162,208.96,208.89,45.42718712]
[1759153954386,4.78565152,208.96,208.89,40.64]
[1759153954586,37.22535073,208.97,208.89,40.64]
[1759153954788,6.4398801,208.94,208.89,40.64]
[1759153954996,0.66,208.96,208.89,40.64]
[1759153955186,26.0,208.97,208.89,57.3952274]
[1759153955501,26.66,208.97,208.89,40.64]
[1759153955805,49.84871127,208.97,208.89,40.64]
[1759153956198,49.84871127,208.97,208.87,0.2]
[1759153956199,14.25559401,208.96,208.87,4.98762786]
[1759153956395,20.69547411,208.96,208.87,5.66762786]
[1759153956620,32.4398801,208.93,208.87,0.2]
[1759153956998,0.66,208.92,208.87,0.2]
[1759153957301,6.4398801,208.9,208.87,0.2]
[1759153957509,0.66,208.91,208.87,0.2]
[1759153957725,4.78743776,208.88,208.87,0.2]
[1759153958182,5.44743776,208.88,208.87,0.2]
[1759153958380,32.4398801,208.89,208.87,0.2]
[1759153958585,26.0,208.89,208.87,0.2]
[1759153958802,32.4398801,208.91,208.87,0.2]
[1759153958998,37.22671757,208.91,208.87,0.2]
[1759153959198,0.66,208.9,208.87,0.2]
[1759153959932,0.66,208.99,208.88,0.68]
[1759153960089,28.66092054,209.05,208.88,0.68]
[1759153960090,6.4398801,209.01,208.89,40.98]
[1759153960417,6.4398801,209.01,208.9,0.68]
[1759153960618,0.66,209.01,208.9,0.68]
[1759153960925,6.4398801,209.0,208.91,40.98]
[1759153962092,4.78491793,208.99,208.91,40.98]
[1759153962293,17.40721277,208.99,208.91,40.98]
[1759153962919,13.59559401,208.98,208.91,40.98]
[1759153963126,0.66,209.05,208.92,0.68]
[1759153963304,13.59559401,209.02,208.92,0.68]
[1759153963623,20.03547411,209.06,208.92,0.68]
[1759153963999,6.4398801,209.06,208.92,0.68]
[1759153964222,11.22329779,209.06,208.93,16.75202219]
[1759153964401,37.22329779,209.06,208.94,0.68]
[1759153965100,49.18158727,209.06,208.94,0.68]
[1759153965402,23.18158727,209.06,208.94,0.68]
[1759153965835,26.0,209.06,208.94,0.68]
[1759153966000,6.4398801,209.1,208.94,0.68]
[1759153966203,6.4398801,209.1,208.95,16.75041875]
[1759153966204,24.81788991,209.1,208.95,16.75041875]
[1759153966403,26.0,209.07,208.96,0.68]
[1759153966646,13.59559401,209.06,208.96,0.68]
[1759153966822,26.0,209.07,208.96,0.68]
[1759153967417,0.66,209.09,208.96,0.68]
[1759153967624,26.0,209.07,208.97,40.94]
[1759153967808,26.0,209.07,208.98,0.68]
[1759153968000,6.4398801,209.06,208.97,40.94]
[1759153968201,17.40240611,209.05,208.98,40.92]
[1759153968396,17.40240611,209.05,208.94,5.46605226]
[1759153968597,4.78331625,209.06,208.95,40.92]
[1759153968806,26.0,209.05,208.96,0.68]
[1759153969411,32.4398801,209.05,208.96,0.68]
[1759153970022,32.4398801,209.05,208.96,41.58]
[1759153970327,37.22348586,209.05,208.96,46.3655742]
[1759153970826,6.4398801,209.02,208.95,40.88]
[1759153971007,0.66,209.01,208.95,40.88]
[1759153971205,6.4398801,208.99,208.95,40.88]
[1759153971408,6.4398801,209.02,208.95,41.58]
[1759153971814,6.4398801,209.02,208.95,40.88]
[1759153972217,4.78400229,209.03,208.96,4.7856049]
[1759153972416,6.4398801,209.02,208.94,4.7858359]
[1759153972621,6.4398801,209.02,208.96,40.86]
[1759153973528,0.71,209.01,208.96,40.86]
[1759153973724,0.71,209.0,208.96,40.86]
[1759153973930,0.71,209.0,208.92,0.7]
[1759153974101,4.7851469,208.98,208.93,40.8]
[1759153974429,17.45801416,208.98,208.93,40.8]
[1759153974939,6.4398801,208.96,208.93,40.8]
[1759153975243,0.71,208.95,208.93,40.8]
[1759153975526,6.4398801,208.96,208.93,40.8]
[1759153975730,0.71,208.95,208.93,40.8]
[1759153976031,6.4398801,208.96,208.93,40.8]
[1759153976326,4.78606298,208.94,208.93,40.8]
[1759153976728,4.78586045,208.95,208.93,40.8]
[1759153977029,6.4494865,208.96,208.88,45.56739618]
[1759153977203,18.38074091,208.98,208.88,45.56739618]
[1759153977204,4.7851469,208.98,208.89,0.7]
[1759153978421,17.45721277,208.99,208.89,5.4871298]
[1759153978731,6.4494865,208.97,208.89,5.4871298]
[1759153978914,6.4494865,208.97,208.89,0.7]
[1759153979116,7.1594865,208.97,208.89,0.7]
[1759153979323,6.4494865,208.97,208.89,0.7]
[1759153979524,0.71,209.05,208.9,20.04508051]
[1759153979734,26.0,209.03,208.91,0.7]
[1759153980422,11.23286745,209.06,208.92,16.75282404]
[1759153980727,0.71,209.1,208.93,7.1494865]
[1759153981044,7.1594865,209.14,208.96,32.4494865]
[1759153981209,6.4494865,209.17,209.02,6.4494865]
[1759153981415,6.4494865,209.21,209.05,32.4494865]
[1759153981734,0.71,209.2,209.05,0.7]
[1759153981909,26.0,209.15,209.06,40.76]
[1759153982243,6.4494865,209.14,209.06,40.76]
[1759153982409,4.78171472,209.13,209.06,40.76]
[1759153982730,4.78171472,209.13,209.02,0.7]
[1759153982731,26.0,209.1,209.02,0.7]
[1759153982930,13.59559401,209.07,208.98,0.7]
[1759153983114,6.4494865,209.05,208.98,0.7]
[1759153983431,7.1594865,209.05,208.97,22.16]
[1759153984240,6.4494865,209.02,208.97,22.16]
[1759153984412,4.7851469,208.98,208.89,0.7]
[1759153984607,16.74801416,208.98,208.9,40.9]
[1759153984917,32.4494865,208.96,208.88,34.5]
[1759153985238,6.4494865,208.93,208.87,0.2]
[1759153985729,26.0,208.94,208.87,0.2]
[1759153986434,13.59559401,209.03,208.88,5.48743776]
[1759153986730,0.71,209.04,208.89,0.7]
[1759153987034,32.4494865,209.04,208.89,7.1494865]
[1759153987340,7.1594865,209.07,208.92,6.4494865]
[1759153987519,4.78329751,209.07,208.93,41.64]
[1759153987720,11.95453553,209.13,208.95,6.4494865]
[1759153987927,18.40402203,209.13,208.98,6.4494865]
[1759153988119,18.40402203,209.13,208.99,0.7]
[1759153988428,18.40402203,209.13,209.0,4.78468899]
[1759153988429,16.73680183,209.12,209.0,4.78468899]
[1759153988614,43.44680183,209.12,209.01,41.62]
[1759153988818,6.4494865,209.1,209.01,40.92]
[1759153989025,6.4494865,209.07,209.01,40.92]
[1759153989415,7.1594865,209.07,209.01,40.92]
[1759153990132,0.71,209.11,208.99,40.9]
[1759153990433,21.09304675,209.12,209.01,5.48441336]
[1759153990623,26.0,209.11,209.01,5.48441336]
[1759153990937,26.71,209.11,209.01,0.7]
[1759153991243,26.71,209.11,208.99,40.9]
[1759153991244,30.35624492,209.07,208.99,40.9]
[1759153991439,0.71,209.06,208.99,40.9]
[1759153991817,30.35624492,209.07,208.92,0.7]
[1759153991818,4.35624492,209.01,208.92,0.7]
[1759153992026,4.35624492,209.01,208.93,40.86]
[1759153992222,4.35624492,208.98,208.93,40.86]
[1759153992742,8.08397866,209.19,208.93,40.86]
[1759153992743,30.78447699,209.01,208.94,0.7]
[1759153992917,26.0,209.03,208.94,0.7]
[1759153993122,4.78355801,209.05,208.94,0.7]
[1759153993943,17.95183893,209.13,208.98,4.35624492]
[1759153994244,5.44150865,209.14,209.01,4.35624492]
[1759153994447,0.66,209.14,209.03,4.78400229]
[1759153994619,5.01624492,209.17,209.04,0.66]
[1759153994818,4.77965777,209.22,209.05,13.59559401]
[1759153994819,5.01624492,209.21,209.05,13.59559401]
[1759153995020,5.01624492,209.21,209.08,4.35624492]
[1759153995324,4.77943892,209.23,209.09,0.66]
[1759153995631,26.0,209.21,209.1,40.86]
[1759153995825,26.0,209.21,209.11,0.66]
[1759153996021,4.77943892,209.23,209.11,0.66]
[1759153996416,4.77988623,209.21,209.1,40.86]
[1759153996616,4.77988623,209.21,209.04,26.0]
[1759153996617,5.01156188,209.2,209.08,26.0]
[1759153996841,0.66,209.2,209.11,40.84]
[1759153997216,9.13123963,209.22,209.11,41.5]
[1759153997419,5.4394326,209.23,209.12,0.66]
[1759153997626,0.66,209.27,209.12,0.66]
[1759153997834,4.77875977,209.26,209.12,0.66]
[1759153998036,21.73718201,209.26,209.12,0.66]
[1759153998220,4.35156188,209.23,209.13,40.84]
[1759153998422,5.01156188,209.23,209.13,40.84]
[1759153998627,4.77965777,209.22,209.14,40.84]
[1759153998935,5.4394489,209.23,209.15,40.82]
[1759153999437,5.4394489,209.23,209.12,5.44194218]
[1759153999745,5.4394489,209.23,209.13,40.78]
[1759153999938,17.38802224,209.23,209.13,40.78]
[1759154000239,17.38802224,209.23,209.14,40.78]
[1759154000540,17.38802224,209.23,209.12,0.66]
[1759154000722,4.35156188,209.22,209.15,40.78]
[1759154002347,4.35156188,209.19,209.02,79.3]
[1759154002532,4.35156188,209.19,209.08,0.72]
[1759154002533,4.78057175,209.18,209.08,0.72]
[1759154002731,4.78057175,209.18,209.08,5.50277717]
[1759154002934,4.78057175,209.18,209.09,0.72]
[1759154003650,16.73200114,209.18,209.1,40.68]
[1759154003840,16.73200114,209.18,209.09,0.72]
[1759154004039,16.73200114,209.18,209.11,40.68]
[1759154004231,4.78057175,209.18,209.11,40.68]
[1759154004425,4.78057175,209.18,209.12,0.72]
[1759154004924,4.78057175,209.18,209.08,79.3]
[1759154005130,4.78057175,209.18,209.09,41.38]
[1759154005734,16.73200114,209.18,209.09,41.38]
[1759154005933,42.73200114,209.18,209.09,0.72]
[1759154006142,42.73200114,209.18,209.09,40.6]
[1759154006426,4.78011472,209.2,209.1,0.72]
[1759154006847,4.78011472,209.2,209.1,80.02]
[1759154007044,17.42040152,209.2,209.1,80.02]
[1759154007545,4.35156188,209.18,209.11,40.62]
[1759154007847,4.35156188,209.18,209.12,40.6]
[1759154008026,4.35156188,209.15,209.07,79.3]
[1759154008226,5.04156188,209.15,209.11,40.58]
[1759154009036,4.78148608,209.14,209.11,40.58]
[1759154009538,4.78116741,209.16,209.11,40.58]
[1759154009939,16.7337396,209.16,209.11,40.58]
[1759154010256,4.78116741,209.16,209.12,0.72]
[1759154010626,4.78116741,209.16,209.11,40.58]
[1759154010826,17.4237396,209.16,209.09,80.02]
[1759154011030,4.35156188,209.15,209.09,79.3]
[1759154011370,4.35156188,209.15,209.1,40.54]
[1759154011690,4.35156188,209.15,209.1,40.52]
[1759154011950,5.04156188,209.15,209.1,40.52]
[1759154012260,26.0,209.12,209.1,40.52]
[1759154012451,26.0,209.12,209.03,79.3]
[1759154012656,4.35156188,209.1,209.03,79.3]
[1759154012953,16.7392032,209.09,209.04,40.5]
[1759154013159,4.78262948,209.09,209.04,40.5]
[1759154013534,16.7392032,209.09,209.05,40.5]
[1759154013764,4.78262948,209.09,209.05,40.5]
[1759154014064,16.7392032,209.09,209.05,40.5]
[1759154014441,4.35156188,209.07,209.01,0.72]
[1759154014642,4.35156188,209.07,209.02,40.48]
[1759154014845,42.7392032,209.09,209.03,0.72]
[1759154015047,4.35156188,209.08,209.03,0.72]
[1759154015452,5.04156188,209.08,209.02,40.48]
[1759154015651,4.35156188,209.08,209.03,40.44]
[1759154016051,42.7392032,209.09,209.03,40.44]
[1759154016357,4.35156188,209.08,209.04,40.42]
[1759154016670,4.35156188,209.08,208.96,79.3]
[1759154016857,4.35156188,209.05,208.97,41.12]
[1759154017153,4.35156188,208.99,208.9,0.72]
[1759154017339,4.35156188,208.96,208.91,40.42]
[1759154017854,4.35156188,209.04,208.92,0.72]
[1759154018034,30.35156188,209.05,208.92,0.72]
[1759154018557,26.0,209.04,208.92,0.72]
[1759154019150,4.78400229,209.03,208.93,4.78629205]
[1759154019343,4.78400229,209.03,208.94,0.72]
[1759154019538,26.0,209.04,208.94,0.72]
[1759154019732,35.13532957,209.05,208.94,0.72]
[1759154019937,47.09419108,209.05,208.94,0.72]
[1759154020262,43.4326292,209.05,208.94,0.72]
[1759154020471,4.35156188,209.04,208.94,0.72]
[1759154020771,4.35156188,209.01,208.95,40.4]
[1759154021143,4.35156188,208.98,208.95,40.4]
[1759154021342,5.04156188,208.98,208.95,40.4]
[1759154021551,4.35156188,209.06,208.96,0.72]
[1759154022245,0.69,209.05,208.97,40.48]
[1759154022446,4.35156188,209.03,208.93,0.72]
[1759154022647,4.78423117,209.02,208.98,40.5]
[1759154022969,4.35156188,209.0,208.93,0.72]
[1759154023169,4.35156188,209.0,208.94,40.46]
[1759154023467,4.35156188,209.0,208.94,41.18]
[1759154023849,26.0,209.02,208.94,41.18]
[1759154024282,4.35156188,209.0,208.92,16.75280346]
[1759154024445,5.04156188,209.01,208.95,40.44]
[1759154024644,4.35156188,209.02,208.96,4.7856049]
[1759154024846,26.0,209.04,208.96,5.5056049]
[1759154025053,26.69,209.04,208.96,5.5056049]
[1759154025348,4.35156188,209.05,208.97,0.72]
[1759154025654,4.35156188,209.07,208.97,80.02]
[1759154025846,26.0,209.06,208.97,80.02]
[1759154026351,4.35156188,209.04,208.98,40.44]
[1759154026556,4.78400229,209.03,208.98,40.44]
[1759154027141,5.47400229,209.03,208.98,40.44]
[1759154027343,4.35156188,209.01,208.98,40.44]
[1759154027566,26.0,209.05,208.98,40.44]
[1759154027874,20.0,209.12,208.98,40.44]
[1759154027875,4.35156188,209.11,208.99,0.72]
[1759154028069,4.35156188,209.11,208.99,80.02]
[1759154028242,4.35156188,209.11,209.0,0.72]
[1759154028637,4.35156188,209.11,209.01,16.74561025]
[1759154028873,4.35156188,209.11,209.02,0.72]
[1759154029079,9.1337488,209.11,209.03,40.52]
[1759154029444,22.72882382,209.14,209.04,0.72]
[1759154029745,4.35156188,209.08,209.03,40.5]
[1759154029944,5.04156188,209.08,209.03,40.5]
[1759154030148,4.35156188,209.09,209.03,40.5]
[1759154030861,4.78285823,209.08,209.03,40.5]
[1759154031052,4.35156188,209.06,208.97,0.68]
[1759154031245,0.71,209.07,208.97,0.68]
[1759154031246,4.35156188,209.04,208.98,40.48]
[1759154031571,4.35156188,209.04,208.99,40.48]
[1759154031756,4.35156188,209.04,208.99,41.16]
[1759154031963,4.35156188,209.05,209.0,0.68]
[1759154032248,4.35156188,209.05,209.01,0.68]
[1759154032957,4.35156188,209.05,209.01,5.46439836]
[1759154033158,4.35156188,209.05,209.01,0.68]
[1759154033344,4.35156188,209.05,208.99,45.2649021]
[1759154033765,4.35156188,209.02,208.95,4.78583393]
[1759154033969,4.35156188,209.02,208.96,40.46]
[1759154034352,4.35156188,209.02,208.96,41.14]
[1759154034551,4.35156188,209.02,208.96,0.68]
[1759154034752,4.35156188,209.02,208.97,45.22522554]
[1759154034971,9.13584588,209.02,208.97,45.90522554]
[1759154035158,9.13584588,209.02,208.97,41.12]
[1759154035479,4.35156188,209.1,208.98,0.68]
[1759154035785,4.35156188,209.1,208.98,214.68]
[1759154035981,4.35156188,209.1,208.99,0.68]
[1759154036180,0.71,209.13,208.99,0.68]
[1759154036384,4.35156188,209.14,208.99,0.68]
[1759154036977,4.78217206,209.11,209.0,16.74641147]
[1759154037150,4.78217206,209.11,209.01,0.68]
[1759154037348,13.59559401,209.15,209.01,0.68]
[1759154037349,0.71,209.18,209.02,40.38]
[1759154037688,7.86549343,209.27,209.02,40.38]
[1759154037689,3.99202827,209.26,209.03,0.68]
[1759154037849,5.36481529,209.3,209.1,26.0]
[1759154037850,3.99202827,209.3,209.1,26.0]
[1759154038080,11.94204637,209.35,209.1,26.0]
[1759154038081,0.71,209.29,209.11,41.06]
[1759154038393,0.71,209.28,209.14,26.0]
[1759154038601,4.77705789,209.34,209.15,0.68]
[1759154038602,3.85567915,209.34,209.15,0.68]
[1759154038782,152.8,209.43,209.15,0.68]
[1759154038783,0.71,209.3,209.17,16.73280106]
[1759154039094,11.93868159,209.41,209.17,16.73280106]
[1759154039095,0.71,209.36,209.18,0.68]
[1759154039604,0.71,209.39,209.19,13.59559401]